Workbook

Sheet Uitleg
C21: Vul een bedrag in.
C25: Op welke datum wilt u deze extra aflossing betalen?
C26: Vul een datum in (dd-mm-jjjj). De datum is nodig voor het berekenen van de invorderingsrente.

Sheet Bereken uw aflossing
C5: Rekenhulp Betalingsregeling bijzonder uitstel van betaling vanwege de coronacrisis
C7: Wat is het totale bedrag van de belastingschuld die u hebt opgebouwd voor alle belastingen waarvoor u bijzonder uitstel had, zonder de invorderingsrente?
C8: Vul het bedrag in van de opgebouwde belastingschuld, zonder invorderingsrente.
C10: 100000
C12: Wilt u de opgebouwde belastingschuld tussentijds extra aflossen?
C13: Kies in het invulveld 'Nee' als u dit niet wilt.
C14: Kies in het invulveld 'Ja' als u dit wel wilt.
C16: Ja
C18: Wat is het bedrag dat u extra wilt aflossen?
C19: Vul een bedrag in.
C21: 15000
C23: Op welke datum wilt u deze extra aflossing betalen?
C24: Vul een datum in (dd-mm-jjjj). De datum is nodig voor het berekenen van de invorderingsrente.
C26: 2023-01-01
C28: Klik op 'Berekenen' voor de berekening van het aflossingsschema.
C34: ="Annuïtair met extra aflossing van "&IF(OR(C16="Nee",C16=""),"€0",TEXT(C21,"€#.##0 ;")) -> Annuïtair met extra aflossing van €15.000 | J34: Annuïtair zonder extra aflossing
C35: =IF(OR(C26="",C16="Nee"),"",IFERROR("U hebt een hoger bedrag ingevuld voor extra aflossing dan u aan verwachte schuld hebt op de ingevulde datum van de extra aflossing. Er wordt gerekend met de hoogst mogelijke aflossing op dat moment: "&TEXT(ROUND(SUM('MET AFLOSSING'!$O$4:$O$64),2),"€#.##0 ;"),""))&"." -> U hebt een hoger bedrag ingevuld voor extra aflossing dan u aan verwachte schuld hebt op de ingevulde datum van de extra aflossing. Er wordt gerekend met de hoogst mogelijke aflossing op dat moment: €15.000 .
C38: Aflossingsschema | J38: Aflossingsschema
C40: Begindatum: | G40: 2022-10-01 | J40: Begindatum: | N40: =G40 -> 2022-10-01
C42: Einddatum: | G42: =IFERROR(_xlfn.IFNA(EOMONTH(VLOOKUP('MET AFLOSSING'!$K$65,'MET AFLOSSING'!$Q$5:$R$64,2,FALSE), -1)+1,N42),"") -> 2027-01-01 | J42: Einddatum: | N42: 2027-10-01
C44: Looptijd: | G44: =IFERROR((YEAR(G42) - YEAR(G40))*12 + MONTH(G42)-MONTH(G40)&" maanden","") -> 51 maanden | J44: Looptijd: | N44: =(YEAR(N42) - YEAR(N40))*12 + MONTH(N42)-MONTH(N40)&" maanden" -> 60 maanden
C46: Maandbedrag: | G46: ='ZONDER AFLOSSING'!E20 -> 1804.667625 | J46: Maandbedrag: | N46: ='ZONDER AFLOSSING'!E20 -> 1804.667625
C48: Totaalbedrag, inclusief invorderingsrente: | G48: =IFERROR('MET AFLOSSING'!E27,"") -> 105704.8145 | J48: Totaalbedrag, inclusief invorderingsrente: | N48: ='ZONDER AFLOSSING'!E19 -> 108280.0575
C50: Totaalbedrag invorderingsrente: | G50: =IFERROR(G48-C10,"") -> 5704.814536 | J50: Totaalbedrag invorderingsrente: | N50: =N48-C10 -> 8280.057482
C52: Rentebesparing door extra aflossing: | G52: =IFERROR(N50-G50,"") -> 2575.242947

Sheet ZONDER AFLOSSING (hidden)
C3: Input vanuit VIEW ONDERNEMER | H3: Maand | I3: Invorderingsrente | J3: Resterend (maanden) | K3: Openstaand | L3: Maandelijkse betaling | M3: Waarvan rente | N3: Waarvan aflossing | O3: Extra aflossing
C4: Belastingsschuld | E4: ='Bereken uw aflossing'!C10 -> 100000 | H4: 2022-10-31 | I4: =_xlfn.IFS(H4>=$C$15,$E$15, H4>=$C$14,$E$14, H4>=$C$13,$E$13,H4>=$C$12,$E$12,H4<=$D$11,$E$11) -> 0.01 | J4: 60 | K4: =E4 -> 100000 | L4: 1804.667625 | M4: =K4*I4/12 -> 83.33333333 | N4: =L4-M4 -> 1721.334291 | O4: 0
C5: Extra aflossing | E5: 0 | H5: 2022-11-30 | I5: =_xlfn.IFS(H5>=$C$15,$E$15, H5>=$C$14,$E$14, H5>=$C$13,$E$13,H5>=$C$12,$E$12,H5<=$D$11,$E$11) -> 0.01 | J5: =J4-1 -> 59 | K5: =K4-N4-O4 -> 98278.66571 | L5: =$L$4 -> 1804.667625 | M5: =K5*I5/12 -> 81.89888809 | N5: =L5-M5 -> 1722.768737 | O5: 0
C6: Op datum | E6: n.v.t. | H6: 2022-12-31 | I6: =_xlfn.IFS(H6>=$C$15,$E$15, H6>=$C$14,$E$14, H6>=$C$13,$E$13,H6>=$C$12,$E$12,H6<=$D$11,$E$11) -> 0.01 | J6: =J5-1 -> 58 | K6: =K5-N5-O5 -> 96555.89697 | L6: =$L$4 -> 1804.667625 | M6: 80.46324748 | N6: 1724.204377 | O6: 0
H7: 2023-01-31 | I7: =_xlfn.IFS(H7>=$C$15,$E$15, H7>=$C$14,$E$14, H7>=$C$13,$E$13,H7>=$C$12,$E$12,H7<=$D$11,$E$11) -> 0.02 | J7: 57 | K7: 94831.69259 | L7: 1804.667625 | M7: 158.052821 | N7: 1646.614804 | O7: 0
H8: 2023-02-28 | I8: =_xlfn.IFS(H8>=$C$15,$E$15, H8>=$C$14,$E$14, H8>=$C$13,$E$13,H8>=$C$12,$E$12,H8<=$D$11,$E$11) -> 0.02 | J8: 56 | K8: 93185.07779 | L8: 1804.667625 | M8: 155.308463 | N8: 1649.359162 | O8: 0
C9: INVORDERINGSRENTE | H9: 2023-03-31 | I9: =_xlfn.IFS(H9>=$C$15,$E$15, H9>=$C$14,$E$14, H9>=$C$13,$E$13,H9>=$C$12,$E$12,H9<=$D$11,$E$11) -> 0.02 | J9: 55 | K9: 91535.71863 | L9: 1804.667625 | M9: 152.559531 | N9: 1652.108094 | O9: 0
C10: Van | D10: T/m | E10: % | H10: 2023-04-30 | I10: =_xlfn.IFS(H10>=$C$15,$E$15, H10>=$C$14,$E$14, H10>=$C$13,$E$13,H10>=$C$12,$E$12,H10<=$D$11,$E$11) -> 0.02 | J10: 54 | K10: 89883.61054 | L10: 1804.667625 | M10: 149.8060176 | N10: 1654.861607 | O10: 0
C11: - | D11: 2022-06-30 | E11: 0.0001 | H11: 2023-05-31 | I11: =_xlfn.IFS(H11>=$C$15,$E$15, H11>=$C$14,$E$14, H11>=$C$13,$E$13,H11>=$C$12,$E$12,H11<=$D$11,$E$11) -> 0.02 | J11: 53 | K11: 88228.74893 | L11: 1804.667625 | M11: 147.0479149 | N11: 1657.61971 | O11: 0
C12: 2022-07-01 | D12: 2022-12-31 | E12: 0.01 | H12: 2023-06-30 | I12: =_xlfn.IFS(H12>=$C$15,$E$15, H12>=$C$14,$E$14, H12>=$C$13,$E$13,H12>=$C$12,$E$12,H12<=$D$11,$E$11) -> 0.02 | J12: 52 | K12: 86571.12922 | L12: 1804.667625 | M12: 144.2852154 | N12: 1660.382409 | O12: 0
C13: 2023-01-01 | D13: 2023-06-30 | E13: 0.02 | H13: 2023-07-31 | I13: =_xlfn.IFS(H13>=$C$15,$E$15, H13>=$C$14,$E$14, H13>=$C$13,$E$13,H13>=$C$12,$E$12,H13<=$D$11,$E$11) -> 0.03 | J13: 51 | K13: 84910.74681 | L13: 1804.667625 | M13: 212.276867 | N13: 1592.390758 | O13: 0
C14: 2023-07-01 | D14: 2023-12-31 | E14: 0.03 | H14: 2023-08-31 | I14: =_xlfn.IFS(H14>=$C$15,$E$15, H14>=$C$14,$E$14, H14>=$C$13,$E$13,H14>=$C$12,$E$12,H14<=$D$11,$E$11) -> 0.03 | J14: 50 | K14: 83318.35605 | L14: 1804.667625 | M14: 208.2958901 | N14: 1596.371735 | O14: 0
C15: 2024-01-01 | D15: - | E15: 0.04 | H15: 2023-09-30 | I15: =_xlfn.IFS(H15>=$C$15,$E$15, H15>=$C$14,$E$14, H15>=$C$13,$E$13,H15>=$C$12,$E$12,H15<=$D$11,$E$11) -> 0.03 | J15: 49 | K15: 81721.98432 | L15: 1804.667625 | M15: 204.3049608 | N15: 1600.362664 | O15: 0
H16: 2023-10-31 | I16: =_xlfn.IFS(H16>=$C$15,$E$15, H16>=$C$14,$E$14, H16>=$C$13,$E$13,H16>=$C$12,$E$12,H16<=$D$11,$E$11) -> 0.03 | J16: 48 | K16: 80121.62165 | L16: 1804.667625 | M16: 200.3040541 | N16: 1604.363571 | O16: 0
H17: 2023-11-30 | I17: =_xlfn.IFS(H17>=$C$15,$E$15, H17>=$C$14,$E$14, H17>=$C$13,$E$13,H17>=$C$12,$E$12,H17<=$D$11,$E$11) -> 0.03 | J17: 47 | K17: 78517.25808 | L17: 1804.667625 | M17: 196.2931452 | N17: 1608.374479 | O17: 0
C18: Output obv VIEW ONDERNEMER | H18: 2023-12-31 | I18: =_xlfn.IFS(H18>=$C$15,$E$15, H18>=$C$14,$E$14, H18>=$C$13,$E$13,H18>=$C$12,$E$12,H18<=$D$11,$E$11) -> 0.03 | J18: 46 | K18: 76908.8836 | L18: 1804.667625 | M18: 192.272209 | N18: 1612.395416 | O18: 0
C19: Totaal betaald | E19: =SUM($L$4:$L$63)+SUM($O$4:$O$63) -> 108280.0575 | H19: 2024-01-31 | I19: =_xlfn.IFS(H19>=$C$15,$E$15, H19>=$C$14,$E$14, H19>=$C$13,$E$13,H19>=$C$12,$E$12,H19<=$D$11,$E$11) -> 0.04 | J19: 45 | K19: 75296.48819 | L19: 1804.667625 | M19: 250.988294 | N19: 1553.679331 | O19: 0
C20: Maandlast | E20: =$E$30 -> 1804.667625 | H20: 2024-02-29 | I20: =_xlfn.IFS(H20>=$C$15,$E$15, H20>=$C$14,$E$14, H20>=$C$13,$E$13,H20>=$C$12,$E$12,H20<=$D$11,$E$11) -> 0.04 | J20: 44 | K20: 73742.80886 | L20: 1804.667625 | M20: 245.8093629 | N20: 1558.858262 | O20: 0
C21: Totaal betaalde rente | E21: =E19-E4 -> 8280.057482 | H21: 2024-03-31 | I21: =_xlfn.IFS(H21>=$C$15,$E$15, H21>=$C$14,$E$14, H21>=$C$13,$E$13,H21>=$C$12,$E$12,H21<=$D$11,$E$11) -> 0.04 | J21: 43 | K21: 72183.95059 | L21: 1804.667625 | M21: 240.6131686 | N21: 1564.054456 | O21: 0
H22: 2024-04-30 | I22: =_xlfn.IFS(H22>=$C$15,$E$15, H22>=$C$14,$E$14, H22>=$C$13,$E$13,H22>=$C$12,$E$12,H22<=$D$11,$E$11) -> 0.04 | J22: 42 | K22: 70619.89614 | L22: 1804.667625 | M22: 235.3996538 | N22: 1569.267971 | O22: 0
H23: 2024-05-31 | I23: =_xlfn.IFS(H23>=$C$15,$E$15, H23>=$C$14,$E$14, H23>=$C$13,$E$13,H23>=$C$12,$E$12,H23<=$D$11,$E$11) -> 0.04 | J23: 41 | K23: 69050.62817 | L23: 1804.667625 | M23: 230.1687606 | N23: 1574.498864 | O23: 0
C24: Rekenmethode | D24: 10 | H24: 2024-06-30 | I24: =_xlfn.IFS(H24>=$C$15,$E$15, H24>=$C$14,$E$14, H24>=$C$13,$E$13,H24>=$C$12,$E$12,H24<=$D$11,$E$11) -> 0.04 | J24: 40 | K24: 67476.1293 | L24: 1804.667625 | M24: 224.920431 | N24: 1579.747194 | O24: 0
C25: x_guess | E25: 1666.666667 | H25: 2024-07-31 | I25: =_xlfn.IFS(H25>=$C$15,$E$15, H25>=$C$14,$E$14, H25>=$C$13,$E$13,H25>=$C$12,$E$12,H25<=$D$11,$E$11) -> 0.04 | J25: 39 | K25: 65896.38211 | L25: 1804.667625 | M25: 219.654607 | N25: 1585.013018 | O25: 0
C26: y1 | E26: 8468.0365 | H26: 2024-08-31 | I26: =_xlfn.IFS(H26>=$C$15,$E$15, H26>=$C$14,$E$14, H26>=$C$13,$E$13,H26>=$C$12,$E$12,H26<=$D$11,$E$11) -> 0.04 | J26: 38 | K26: 64311.36909 | L26: 1804.667625 | M26: 214.3712303 | N26: 1590.296394 | O26: 0
C27: y2 | E27: 9791.1573 | H27: 2024-09-30 | I27: =_xlfn.IFS(H27>=$C$15,$E$15, H27>=$C$14,$E$14, H27>=$C$13,$E$13,H27>=$C$12,$E$12,H27<=$D$11,$E$11) -> 0.04 | J27: 37 | K27: 62721.0727 | L27: 1804.667625 | M27: 209.0702423 | N27: 1595.597382 | O27: 0
C28: ym | E28: 9129.5969 | H28: 2024-10-31 | I28: =_xlfn.IFS(H28>=$C$15,$E$15, H28>=$C$14,$E$14, H28>=$C$13,$E$13,H28>=$C$12,$E$12,H28<=$D$11,$E$11) -> 0.04 | J28: 36 | K28: 61125.47532 | L28: 1804.667625 | M28: 203.7515844 | N28: 1600.91604 | O28: 0
C29: rc | E29: 66.15604 | H29: 2024-11-30 | I29: =_xlfn.IFS(H29>=$C$15,$E$15, H29>=$C$14,$E$14, H29>=$C$13,$E$13,H29>=$C$12,$E$12,H29<=$D$11,$E$11) -> 0.04 | J29: 35 | K29: 59524.55928 | L29: 1804.667625 | M29: 198.4151976 | N29: 1606.252427 | O29: 0
C30: x_solution | E30: 1804.667625 | H30: 2024-12-31 | I30: =_xlfn.IFS(H30>=$C$15,$E$15, H30>=$C$14,$E$14, H30>=$C$13,$E$13,H30>=$C$12,$E$12,H30<=$D$11,$E$11) -> 0.04 | J30: 34 | K30: 57918.30685 | L30: 1804.667625 | M30: 193.0610228 | N30: 1611.606602 | O30: 0
H31: 2025-01-31 | I31: =_xlfn.IFS(H31>=$C$15,$E$15, H31>=$C$14,$E$14, H31>=$C$13,$E$13,H31>=$C$12,$E$12,H31<=$D$11,$E$11) -> 0.04 | J31: 33 | K31: 56306.70025 | L31: 1804.667625 | M31: 187.6890008 | N31: 1616.978624 | O31: 0
H32: 2025-02-28 | I32: =_xlfn.IFS(H32>=$C$15,$E$15, H32>=$C$14,$E$14, H32>=$C$13,$E$13,H32>=$C$12,$E$12,H32<=$D$11,$E$11) -> 0.04 | J32: 32 | K32: 54689.72162 | L32: 1804.667625 | M32: 182.2990721 | N32: 1622.368553 | O32: 0
H33: 2025-03-31 | I33: =_xlfn.IFS(H33>=$C$15,$E$15, H33>=$C$14,$E$14, H33>=$C$13,$E$13,H33>=$C$12,$E$12,H33<=$D$11,$E$11) -> 0.04 | J33: 31 | K33: 53067.35307 | L33: 1804.667625 | M33: 176.8911769 | N33: 1627.776448 | O33: 0
H34: 2025-04-30 | I34: =_xlfn.IFS(H34>=$C$15,$E$15, H34>=$C$14,$E$14, H34>=$C$13,$E$13,H34>=$C$12,$E$12,H34<=$D$11,$E$11) -> 0.04 | J34: 30 | K34: 51439.57662 | L34: 1804.667625 | M34: 171.4652554 | N34: 1633.202369 | O34: 0
H35: 2025-05-31 | I35: =_xlfn.IFS(H35>=$C$15,$E$15, H35>=$C$14,$E$14, H35>=$C$13,$E$13,H35>=$C$12,$E$12,H35<=$D$11,$E$11) -> 0.04 | J35: 29 | K35: 49806.37425 | L35: 1804.667625 | M35: 166.0212475 | N35: 1638.646377 | O35: 0
H36: 2025-06-30 | I36: =_xlfn.IFS(H36>=$C$15,$E$15, H36>=$C$14,$E$14, H36>=$C$13,$E$13,H36>=$C$12,$E$12,H36<=$D$11,$E$11) -> 0.04 | J36: 28 | K36: 48167.72788 | L36: 1804.667625 | M36: 160.5590929 | N36: 1644.108532 | O36: 0
H37: 2025-07-31 | I37: =_xlfn.IFS(H37>=$C$15,$E$15, H37>=$C$14,$E$14, H37>=$C$13,$E$13,H37>=$C$12,$E$12,H37<=$D$11,$E$11) -> 0.04 | J37: 27 | K37: 46523.61934 | L37: 1804.667625 | M37: 155.0787311 | N37: 1649.588894 | O37: 0
H38: 2025-08-31 | I38: =_xlfn.IFS(H38>=$C$15,$E$15, H38>=$C$14,$E$14, H38>=$C$13,$E$13,H38>=$C$12,$E$12,H38<=$D$11,$E$11) -> 0.04 | J38: 26 | K38: 44874.03045 | L38: 1804.667625 | M38: 149.5801015 | N38: 1655.087523 | O38: 0
H39: 2025-09-30 | I39: =_xlfn.IFS(H39>=$C$15,$E$15, H39>=$C$14,$E$14, H39>=$C$13,$E$13,H39>=$C$12,$E$12,H39<=$D$11,$E$11) -> 0.04 | J39: 25 | K39: 43218.94293 | L39: 1804.667625 | M39: 144.0631431 | N39: 1660.604482 | O39: 0
H40: 2025-10-31 | I40: =_xlfn.IFS(H40>=$C$15,$E$15, H40>=$C$14,$E$14, H40>=$C$13,$E$13,H40>=$C$12,$E$12,H40<=$D$11,$E$11) -> 0.04 | J40: 24 | K40: 41558.33845 | L40: 1804.667625 | M40: 138.5277948 | N40: 1666.13983 | O40: 0
H41: 2025-11-30 | I41: =_xlfn.IFS(H41>=$C$15,$E$15, H41>=$C$14,$E$14, H41>=$C$13,$E$13,H41>=$C$12,$E$12,H41<=$D$11,$E$11) -> 0.04 | J41: 23 | K41: 39892.19862 | L41: 1804.667625 | M41: 132.9739954 | N41: 1671.693629 | O41: 0
H42: 2025-12-31 | I42: =_xlfn.IFS(H42>=$C$15,$E$15, H42>=$C$14,$E$14, H42>=$C$13,$E$13,H42>=$C$12,$E$12,H42<=$D$11,$E$11) -> 0.04 | J42: 22 | K42: 38220.50499 | L42: 1804.667625 | M42: 127.4016833 | N42: 1677.265941 | O42: 0
H43: 2026-01-31 | I43: =_xlfn.IFS(H43>=$C$15,$E$15, H43>=$C$14,$E$14, H43>=$C$13,$E$13,H43>=$C$12,$E$12,H43<=$D$11,$E$11) -> 0.04 | J43: 21 | K43: 36543.23904 | L43: 1804.667625 | M43: 121.8107968 | N43: 1682.856828 | O43: 0
H44: 2026-02-28 | I44: =_xlfn.IFS(H44>=$C$15,$E$15, H44>=$C$14,$E$14, H44>=$C$13,$E$13,H44>=$C$12,$E$12,H44<=$D$11,$E$11) -> 0.04 | J44: 20 | K44: 34860.38222 | L44: 1804.667625 | M44: 116.2012741 | N44: 1688.466351 | O44: 0
H45: 2026-03-31 | I45: =_xlfn.IFS(H45>=$C$15,$E$15, H45>=$C$14,$E$14, H45>=$C$13,$E$13,H45>=$C$12,$E$12,H45<=$D$11,$E$11) -> 0.04 | J45: 19 | K45: 33171.91587 | L45: 1804.667625 | M45: 110.5730529 | N45: 1694.094572 | O45: 0
H46: 2026-04-30 | I46: =_xlfn.IFS(H46>=$C$15,$E$15, H46>=$C$14,$E$14, H46>=$C$13,$E$13,H46>=$C$12,$E$12,H46<=$D$11,$E$11) -> 0.04 | J46: 18 | K46: 31477.82129 | L46: 1804.667625 | M46: 104.926071 | N46: 1699.741554 | O46: 0
H47: 2026-05-31 | I47: =_xlfn.IFS(H47>=$C$15,$E$15, H47>=$C$14,$E$14, H47>=$C$13,$E$13,H47>=$C$12,$E$12,H47<=$D$11,$E$11) -> 0.04 | J47: 17 | K47: 29778.07974 | L47: 1804.667625 | M47: 99.2602658 | N47: 1705.407359 | O47: 0
H48: 2026-06-30 | I48: =_xlfn.IFS(H48>=$C$15,$E$15, H48>=$C$14,$E$14, H48>=$C$13,$E$13,H48>=$C$12,$E$12,H48<=$D$11,$E$11) -> 0.04 | J48: 16 | K48: 28072.67238 | L48: 1804.667625 | M48: 93.57557461 | N48: 1711.09205 | O48: 0
H49: 2026-07-31 | I49: =_xlfn.IFS(H49>=$C$15,$E$15, H49>=$C$14,$E$14, H49>=$C$13,$E$13,H49>=$C$12,$E$12,H49<=$D$11,$E$11) -> 0.04 | J49: 15 | K49: 26361.58033 | L49: 1804.667625 | M49: 87.87193444 | N49: 1716.79569 | O49: 0
H50: 2026-08-31 | I50: =_xlfn.IFS(H50>=$C$15,$E$15, H50>=$C$14,$E$14, H50>=$C$13,$E$13,H50>=$C$12,$E$12,H50<=$D$11,$E$11) -> 0.04 | J50: 14 | K50: 24644.78464 | L50: 1804.667625 | M50: 82.14928214 | N50: 1722.518343 | O50: 0
H51: 2026-09-30 | I51: =_xlfn.IFS(H51>=$C$15,$E$15, H51>=$C$14,$E$14, H51>=$C$13,$E$13,H51>=$C$12,$E$12,H51<=$D$11,$E$11) -> 0.04 | J51: 13 | K51: 22922.2663 | L51: 1804.667625 | M51: 76.40755433 | N51: 1728.26007 | O51: 0
H52: 2026-10-31 | I52: =_xlfn.IFS(H52>=$C$15,$E$15, H52>=$C$14,$E$14, H52>=$C$13,$E$13,H52>=$C$12,$E$12,H52<=$D$11,$E$11) -> 0.04 | J52: 12 | K52: 21194.00623 | L52: 1804.667625 | M52: 70.64668743 | N52: 1734.020937 | O52: 0
H53: 2026-11-30 | I53: =_xlfn.IFS(H53>=$C$15,$E$15, H53>=$C$14,$E$14, H53>=$C$13,$E$13,H53>=$C$12,$E$12,H53<=$D$11,$E$11) -> 0.04 | J53: 11 | K53: 19459.98529 | L53: 1804.667625 | M53: 64.86661764 | N53: 1739.801007 | O53: 0
H54: 2026-12-31 | I54: =_xlfn.IFS(H54>=$C$15,$E$15, H54>=$C$14,$E$14, H54>=$C$13,$E$13,H54>=$C$12,$E$12,H54<=$D$11,$E$11) -> 0.04 | J54: 10 | K54: 17720.18428 | L54: 1804.667625 | M54: 59.06728095 | N54: 1745.600344 | O54: 0
H55: 2027-01-31 | I55: =_xlfn.IFS(H55>=$C$15,$E$15, H55>=$C$14,$E$14, H55>=$C$13,$E$13,H55>=$C$12,$E$12,H55<=$D$11,$E$11) -> 0.04 | J55: 9 | K55: 15974.58394 | L55: 1804.667625 | M55: 53.24861313 | N55: 1751.419012 | O55: 0
H56: 2027-02-28 | I56: =_xlfn.IFS(H56>=$C$15,$E$15, H56>=$C$14,$E$14, H56>=$C$13,$E$13,H56>=$C$12,$E$12,H56<=$D$11,$E$11) -> 0.04 | J56: 8 | K56: 14223.16493 | L56: 1804.667625 | M56: 47.41054976 | N56: 1757.257075 | O56: 0
H57: 2027-03-31 | I57: =_xlfn.IFS(H57>=$C$15,$E$15, H57>=$C$14,$E$14, H57>=$C$13,$E$13,H57>=$C$12,$E$12,H57<=$D$11,$E$11) -> 0.04 | J57: 7 | K57: 12465.90785 | L57: 1804.667625 | M57: 41.55302618 | N57: 1763.114599 | O57: 0
H58: 2027-04-30 | I58: =_xlfn.IFS(H58>=$C$15,$E$15, H58>=$C$14,$E$14, H58>=$C$13,$E$13,H58>=$C$12,$E$12,H58<=$D$11,$E$11) -> 0.04 | J58: 6 | K58: 10702.79326 | L58: 1804.667625 | M58: 35.67597752 | N58: 1768.991647 | O58: 0
H59: 2027-05-31 | I59: =_xlfn.IFS(H59>=$C$15,$E$15, H59>=$C$14,$E$14, H59>=$C$13,$E$13,H59>=$C$12,$E$12,H59<=$D$11,$E$11) -> 0.04 | J59: 5 | K59: 8933.801608 | L59: 1804.667625 | M59: 29.77933869 | N59: 1774.888286 | O59: 0
H60: 2027-06-30 | I60: =_xlfn.IFS(H60>=$C$15,$E$15, H60>=$C$14,$E$14, H60>=$C$13,$E$13,H60>=$C$12,$E$12,H60<=$D$11,$E$11) -> 0.04 | J60: 4 | K60: 7158.913322 | L60: 1804.667625 | M60: 23.86304441 | N60: 1780.80458 | O60: 0
H61: 2027-07-31 | I61: =_xlfn.IFS(H61>=$C$15,$E$15, H61>=$C$14,$E$14, H61>=$C$13,$E$13,H61>=$C$12,$E$12,H61<=$D$11,$E$11) -> 0.04 | J61: 3 | K61: 5378.108742 | L61: 1804.667625 | M61: 17.92702914 | N61: 1786.740596 | O61: 0
H62: 2027-08-31 | I62: =_xlfn.IFS(H62>=$C$15,$E$15, H62>=$C$14,$E$14, H62>=$C$13,$E$13,H62>=$C$12,$E$12,H62<=$D$11,$E$11) -> 0.04 | J62: 2 | K62: 3591.368146 | L62: 1804.667625 | M62: 11.97122715 | N62: 1792.696398 | O62: 0
H63: 2027-09-30 | I63: =_xlfn.IFS(H63>=$C$15,$E$15, H63>=$C$14,$E$14, H63>=$C$13,$E$13,H63>=$C$12,$E$12,H63<=$D$11,$E$11) -> 0.04 | J63: 1 | K63: 1798.671749 | L63: 1804.667625 | M63: 5.995572496 | N63: =L63-M63 -> 1798.672052 | O63: 0
K64: =K63-N63-O63 -> -0.0003035567506

Sheet MET AFLOSSING (hidden)
C3: Input vanuit VIEW ONDERNEMER | H3: Maand | I3: Invorderingsrente | J3: Resterend (maanden) | K3: Openstaand | L3: Maandelijkse betaling | M3: Waarvan rente | N3: Waarvan aflossing | O3: Extra aflossing | Q3: Hulpkolom | R3: Hulpdatum
C4: Belastingsschuld | E4: ='Bereken uw aflossing'!C10 -> 100000 | H4: 2022-09-30 | O4: =IF(H4=$C$11,$E$5,0) -> 0
C5: Extra aflossing | E5: =IF('Bereken uw aflossing'!C16="Ja",'Bereken uw aflossing'!C21,0) -> 15000 | H5: 2022-10-31 | I5: =_xlfn.IFS(H5>=$C$23,$E$23, H5>=$C$22,$E$22, H5>=$C$21,$E$21,H5>=$C$20,$E$20,H5<=$D$19,$E$19) -> 0.01 | J5: 60 | K5: =E4-O4 -> 100000 | L5: =MIN($E$28, K5 + K5*I5/12) -> 1804.667625 | M5: =K5*I5/12 -> 83.33333333 | N5: =L5-M5 -> 1721.334291 | O5: =IF(H5=$C$11,MIN($E$5, K5-N5),0) -> 0 | Q5: =IF(K5<=0.004, 0, "niet 0") -> niet 0 | R5: =H5 -> 2022-10-31
C6: Op datum | E6: =IF('Bereken uw aflossing'!C16="Ja",'Bereken uw aflossing'!C26,"") -> 2023-01-01 | H6: 2022-11-30 | I6: =_xlfn.IFS(H6>=$C$23,$E$23, H6>=$C$22,$E$22, H6>=$C$21,$E$21,H6>=$C$20,$E$20,H6<=$D$19,$E$19) -> 0.01 | J6: =J5-1 -> 59 | K6: =MAX(0, K5-N5-O5) -> 98278.66571 | L6: =MIN($E$28, K6 + K6*I6/12) -> 1804.667625 | M6: =K6*I6/12 -> 81.89888809 | N6: =L6-M6 -> 1722.768737 | O6: =IF(H6=$C$11,MIN($E$5, K6-N6),0) -> 0 | Q6: =IF(K6<=0.004, 0, "niet 0") -> niet 0 | R6: =H6 -> 2022-11-30
H7: 2022-12-31 | I7: =_xlfn.IFS(H7>=$C$23,$E$23, H7>=$C$22,$E$22, H7>=$C$21,$E$21,H7>=$C$20,$E$20,H7<=$D$19,$E$19) -> 0.01 | J7: =J6-1 -> 58 | K7: =MAX(0, K6-N6-O6) -> 96555.89697 | L7: 1804.667625 | M7: 80.46324748 | N7: 1724.204377 | O7: 0 | Q7: niet 0 | R7: 2022-12-31
H8: 2023-01-31 | I8: =_xlfn.IFS(H8>=$C$23,$E$23, H8>=$C$22,$E$22, H8>=$C$21,$E$21,H8>=$C$20,$E$20,H8<=$D$19,$E$19) -> 0.02 | J8: 57 | K8: 94831.69259 | L8: 1804.667625 | M8: 158.052821 | N8: 1646.614804 | O8: 15000 | Q8: niet 0 | R8: 2023-01-31
H9: 2023-02-28 | I9: =_xlfn.IFS(H9>=$C$23,$E$23, H9>=$C$22,$E$22, H9>=$C$21,$E$21,H9>=$C$20,$E$20,H9<=$D$19,$E$19) -> 0.02 | J9: 56 | K9: 78185.07779 | L9: 1804.667625 | M9: 130.308463 | N9: 1674.359162 | O9: 0 | Q9: niet 0 | R9: 2023-02-28
C10: Extra aflossing verrekend op: | H10: 2023-03-31 | I10: =_xlfn.IFS(H10>=$C$23,$E$23, H10>=$C$22,$E$22, H10>=$C$21,$E$21,H10>=$C$20,$E$20,H10<=$D$19,$E$19) -> 0.02 | J10: 55 | K10: 76510.71863 | L10: 1804.667625 | M10: 127.5178644 | N10: 1677.14976 | O10: 0 | Q10: niet 0 | R10: 2023-03-31
C11: =IFERROR(EOMONTH(E6,0), "") -> 2023-01-31 | H11: 2023-04-30 | I11: =_xlfn.IFS(H11>=$C$23,$E$23, H11>=$C$22,$E$22, H11>=$C$21,$E$21,H11>=$C$20,$E$20,H11<=$D$19,$E$19) -> 0.02 | J11: 54 | K11: 74833.56887 | L11: 1804.667625 | M11: 124.7226148 | N11: 1679.94501 | O11: 0 | Q11: niet 0 | R11: 2023-04-30
C12: De extra aflossing wordt meegenomen op de laatste dag van de maand | H12: 2023-05-31 | I12: =_xlfn.IFS(H12>=$C$23,$E$23, H12>=$C$22,$E$22, H12>=$C$21,$E$21,H12>=$C$20,$E$20,H12<=$D$19,$E$19) -> 0.02 | J12: 53 | K12: 73153.62386 | L12: 1804.667625 | M12: 121.9227064 | N12: 1682.744918 | O12: 0 | Q12: niet 0 | R12: 2023-05-31
H13: 2023-06-30 | I13: =_xlfn.IFS(H13>=$C$23,$E$23, H13>=$C$22,$E$22, H13>=$C$21,$E$21,H13>=$C$20,$E$20,H13<=$D$19,$E$19) -> 0.02 | J13: 52 | K13: 71470.87894 | L13: 1804.667625 | M13: 119.1181316 | N13: 1685.549493 | O13: 0 | Q13: niet 0 | R13: 2023-06-30
H14: 2023-07-31 | I14: =_xlfn.IFS(H14>=$C$23,$E$23, H14>=$C$22,$E$22, H14>=$C$21,$E$21,H14>=$C$20,$E$20,H14<=$D$19,$E$19) -> 0.03 | J14: 51 | K14: 69785.32945 | L14: 1804.667625 | M14: 174.4633236 | N14: 1630.204301 | O14: 0 | Q14: niet 0 | R14: 2023-07-31
H15: 2023-08-31 | I15: =_xlfn.IFS(H15>=$C$23,$E$23, H15>=$C$22,$E$22, H15>=$C$21,$E$21,H15>=$C$20,$E$20,H15<=$D$19,$E$19) -> 0.03 | J15: 50 | K15: 68155.12515 | L15: 1804.667625 | M15: 170.3878129 | N15: 1634.279812 | O15: 0 | Q15: niet 0 | R15: 2023-08-31
H16: 2023-09-30 | I16: =_xlfn.IFS(H16>=$C$23,$E$23, H16>=$C$22,$E$22, H16>=$C$21,$E$21,H16>=$C$20,$E$20,H16<=$D$19,$E$19) -> 0.03 | J16: 49 | K16: 66520.84533 | L16: 1804.667625 | M16: 166.3021133 | N16: 1638.365511 | O16: 0 | Q16: niet 0 | R16: 2023-09-30
C17: INVORDERINGSRENTE | H17: 2023-10-31 | I17: =_xlfn.IFS(H17>=$C$23,$E$23, H17>=$C$22,$E$22, H17>=$C$21,$E$21,H17>=$C$20,$E$20,H17<=$D$19,$E$19) -> 0.03 | J17: 48 | K17: 64882.47982 | L17: 1804.667625 | M17: 162.2061996 | N17: 1642.461425 | O17: 0 | Q17: niet 0 | R17: 2023-10-31
C18: Van | D18: T/m | E18: % | H18: 2023-11-30 | I18: =_xlfn.IFS(H18>=$C$23,$E$23, H18>=$C$22,$E$22, H18>=$C$21,$E$21,H18>=$C$20,$E$20,H18<=$D$19,$E$19) -> 0.03 | J18: 47 | K18: 63240.0184 | L18: 1804.667625 | M18: 158.100046 | N18: 1646.567579 | O18: 0 | Q18: niet 0 | R18: 2023-11-30
C19: - | D19: 2022-06-30 | E19: ='ZONDER AFLOSSING'!E11 -> 0.0001 | H19: 2023-12-31 | I19: =_xlfn.IFS(H19>=$C$23,$E$23, H19>=$C$22,$E$22, H19>=$C$21,$E$21,H19>=$C$20,$E$20,H19<=$D$19,$E$19) -> 0.03 | J19: 46 | K19: 61593.45082 | L19: 1804.667625 | M19: 153.983627 | N19: 1650.683998 | O19: 0 | Q19: niet 0 | R19: 2023-12-31
C20: 2022-07-01 | D20: 2022-12-31 | E20: ='ZONDER AFLOSSING'!E12 -> 0.01 | H20: 2024-01-31 | I20: =_xlfn.IFS(H20>=$C$23,$E$23, H20>=$C$22,$E$22, H20>=$C$21,$E$21,H20>=$C$20,$E$20,H20<=$D$19,$E$19) -> 0.04 | J20: 45 | K20: 59942.76682 | L20: 1804.667625 | M20: 199.8092227 | N20: 1604.858402 | O20: 0 | Q20: niet 0 | R20: 2024-01-31
C21: 2023-01-01 | D21: 2023-06-30 | E21: ='ZONDER AFLOSSING'!E13 -> 0.02 | H21: 2024-02-29 | I21: =_xlfn.IFS(H21>=$C$23,$E$23, H21>=$C$22,$E$22, H21>=$C$21,$E$21,H21>=$C$20,$E$20,H21<=$D$19,$E$19) -> 0.04 | J21: 44 | K21: 58337.90842 | L21: 1804.667625 | M21: 194.4596947 | N21: 1610.20793 | O21: 0 | Q21: niet 0 | R21: 2024-02-29
C22: 2023-07-01 | D22: 2023-12-31 | E22: ='ZONDER AFLOSSING'!E14 -> 0.03 | H22: 2024-03-31 | I22: =_xlfn.IFS(H22>=$C$23,$E$23, H22>=$C$22,$E$22, H22>=$C$21,$E$21,H22>=$C$20,$E$20,H22<=$D$19,$E$19) -> 0.04 | J22: 43 | K22: 56727.70049 | L22: 1804.667625 | M22: 189.092335 | N22: 1615.57529 | O22: 0 | Q22: niet 0 | R22: 2024-03-31
C23: 2024-01-01 | D23: - | E23: ='ZONDER AFLOSSING'!E15 -> 0.04 | H23: 2024-04-30 | I23: =_xlfn.IFS(H23>=$C$23,$E$23, H23>=$C$22,$E$22, H23>=$C$21,$E$21,H23>=$C$20,$E$20,H23<=$D$19,$E$19) -> 0.04 | J23: 42 | K23: 55112.1252 | L23: 1804.667625 | M23: 183.707084 | N23: 1620.960541 | O23: 0 | Q23: niet 0 | R23: 2024-04-30
H24: 2024-05-31 | I24: =_xlfn.IFS(H24>=$C$23,$E$23, H24>=$C$22,$E$22, H24>=$C$21,$E$21,H24>=$C$20,$E$20,H24<=$D$19,$E$19) -> 0.04 | J24: 41 | K24: 53491.16466 | L24: 1804.667625 | M24: 178.3038822 | N24: 1626.363743 | O24: 0 | Q24: niet 0 | R24: 2024-05-31
H25: 2024-06-30 | I25: =_xlfn.IFS(H25>=$C$23,$E$23, H25>=$C$22,$E$22, H25>=$C$21,$E$21,H25>=$C$20,$E$20,H25<=$D$19,$E$19) -> 0.04 | J25: 40 | K25: 51864.80092 | L25: 1804.667625 | M25: 172.8826697 | N25: 1631.784955 | O25: 0 | Q25: niet 0 | R25: 2024-06-30
C26: Output obv VIEW ONDERNEMER | H26: 2024-07-31 | I26: =_xlfn.IFS(H26>=$C$23,$E$23, H26>=$C$22,$E$22, H26>=$C$21,$E$21,H26>=$C$20,$E$20,H26<=$D$19,$E$19) -> 0.04 | J26: 39 | K26: 50233.01596 | L26: 1804.667625 | M26: 167.4433865 | N26: 1637.224238 | O26: 0 | Q26: niet 0 | R26: 2024-07-31
C27: Totaal betaald | E27: =SUM($L$4:$L$64)+SUM($O$4:$O$64) -> 105704.8145 | H27: 2024-08-31 | I27: =_xlfn.IFS(H27>=$C$23,$E$23, H27>=$C$22,$E$22, H27>=$C$21,$E$21,H27>=$C$20,$E$20,H27<=$D$19,$E$19) -> 0.04 | J27: 38 | K27: 48595.79172 | L27: 1804.667625 | M27: 161.9859724 | N27: 1642.681652 | O27: 0 | Q27: niet 0 | R27: 2024-08-31
C28: Maandlast | E28: ='ZONDER AFLOSSING'!E20 -> 1804.667625 | H28: 2024-09-30 | I28: =_xlfn.IFS(H28>=$C$23,$E$23, H28>=$C$22,$E$22, H28>=$C$21,$E$21,H28>=$C$20,$E$20,H28<=$D$19,$E$19) -> 0.04 | J28: 37 | K28: 46953.11007 | L28: 1804.667625 | M28: 156.5103669 | N28: 1648.157258 | O28: 0 | Q28: niet 0 | R28: 2024-09-30
C29: Totaal betaalde rente | E29: =E27-E4 -> 5704.814536 | H29: 2024-10-31 | I29: =_xlfn.IFS(H29>=$C$23,$E$23, H29>=$C$22,$E$22, H29>=$C$21,$E$21,H29>=$C$20,$E$20,H29<=$D$19,$E$19) -> 0.04 | J29: 36 | K29: 45304.95281 | L29: 1804.667625 | M29: 151.0165094 | N29: 1653.651115 | O29: 0 | Q29: niet 0 | R29: 2024-10-31
H30: 2024-11-30 | I30: =_xlfn.IFS(H30>=$C$23,$E$23, H30>=$C$22,$E$22, H30>=$C$21,$E$21,H30>=$C$20,$E$20,H30<=$D$19,$E$19) -> 0.04 | J30: 35 | K30: 43651.3017 | L30: 1804.667625 | M30: 145.504339 | N30: 1659.163286 | O30: 0 | Q30: niet 0 | R30: 2024-11-30
H31: 2024-12-31 | I31: =_xlfn.IFS(H31>=$C$23,$E$23, H31>=$C$22,$E$22, H31>=$C$21,$E$21,H31>=$C$20,$E$20,H31<=$D$19,$E$19) -> 0.04 | J31: 34 | K31: 41992.13841 | L31: 1804.667625 | M31: 139.9737947 | N31: 1664.69383 | O31: 0 | Q31: niet 0 | R31: 2024-12-31
H32: 2025-01-31 | I32: =_xlfn.IFS(H32>=$C$23,$E$23, H32>=$C$22,$E$22, H32>=$C$21,$E$21,H32>=$C$20,$E$20,H32<=$D$19,$E$19) -> 0.04 | J32: 33 | K32: 40327.44458 | L32: 1804.667625 | M32: 134.4248153 | N32: 1670.242809 | O32: 0 | Q32: niet 0 | R32: 2025-01-31
H33: 2025-02-28 | I33: =_xlfn.IFS(H33>=$C$23,$E$23, H33>=$C$22,$E$22, H33>=$C$21,$E$21,H33>=$C$20,$E$20,H33<=$D$19,$E$19) -> 0.04 | J33: 32 | K33: 38657.20177 | L33: 1804.667625 | M33: 128.8573392 | N33: 1675.810285 | O33: 0 | Q33: niet 0 | R33: 2025-02-28
H34: 2025-03-31 | I34: =_xlfn.IFS(H34>=$C$23,$E$23, H34>=$C$22,$E$22, H34>=$C$21,$E$21,H34>=$C$20,$E$20,H34<=$D$19,$E$19) -> 0.04 | J34: 31 | K34: 36981.39149 | L34: 1804.667625 | M34: 123.271305 | N34: 1681.39632 | O34: 0 | Q34: niet 0 | R34: 2025-03-31
H35: 2025-04-30 | I35: =_xlfn.IFS(H35>=$C$23,$E$23, H35>=$C$22,$E$22, H35>=$C$21,$E$21,H35>=$C$20,$E$20,H35<=$D$19,$E$19) -> 0.04 | J35: 30 | K35: 35299.99517 | L35: 1804.667625 | M35: 117.6666506 | N35: 1687.000974 | O35: 0 | Q35: niet 0 | R35: 2025-04-30
H36: 2025-05-31 | I36: =_xlfn.IFS(H36>=$C$23,$E$23, H36>=$C$22,$E$22, H36>=$C$21,$E$21,H36>=$C$20,$E$20,H36<=$D$19,$E$19) -> 0.04 | J36: 29 | K36: 33612.99419 | L36: 1804.667625 | M36: 112.043314 | N36: 1692.624311 | O36: 0 | Q36: niet 0 | R36: 2025-05-31
H37: 2025-06-30 | I37: =_xlfn.IFS(H37>=$C$23,$E$23, H37>=$C$22,$E$22, H37>=$C$21,$E$21,H37>=$C$20,$E$20,H37<=$D$19,$E$19) -> 0.04 | J37: 28 | K37: 31920.36988 | L37: =MIN($E$28, K37 + K37*I37/12) -> 1804.667625 | M37: 106.4012329 | N37: 1698.266392 | O37: 0 | Q37: niet 0 | R37: 2025-06-30
H38: 2025-07-31 | I38: =_xlfn.IFS(H38>=$C$23,$E$23, H38>=$C$22,$E$22, H38>=$C$21,$E$21,H38>=$C$20,$E$20,H38<=$D$19,$E$19) -> 0.04 | J38: 27 | K38: 30222.10349 | L38: 1804.667625 | M38: 100.740345 | N38: 1703.92728 | O38: 0 | Q38: niet 0 | R38: 2025-07-31
H39: 2025-08-31 | I39: =_xlfn.IFS(H39>=$C$23,$E$23, H39>=$C$22,$E$22, H39>=$C$21,$E$21,H39>=$C$20,$E$20,H39<=$D$19,$E$19) -> 0.04 | J39: 26 | K39: 28518.17621 | L39: 1804.667625 | M39: 95.06058737 | N39: 1709.607037 | O39: 0 | Q39: niet 0 | R39: 2025-08-31
H40: 2025-09-30 | I40: =_xlfn.IFS(H40>=$C$23,$E$23, H40>=$C$22,$E$22, H40>=$C$21,$E$21,H40>=$C$20,$E$20,H40<=$D$19,$E$19) -> 0.04 | J40: 25 | K40: 26808.56917 | L40: 1804.667625 | M40: 89.36189725 | N40: 1715.305727 | O40: 0 | Q40: niet 0 | R40: 2025-09-30
H41: 2025-10-31 | I41: =_xlfn.IFS(H41>=$C$23,$E$23, H41>=$C$22,$E$22, H41>=$C$21,$E$21,H41>=$C$20,$E$20,H41<=$D$19,$E$19) -> 0.04 | J41: 24 | K41: 25093.26345 | L41: 1804.667625 | M41: 83.64421149 | N41: 1721.023413 | O41: 0 | Q41: niet 0 | R41: 2025-10-31
H42: 2025-11-30 | I42: =_xlfn.IFS(H42>=$C$23,$E$23, H42>=$C$22,$E$22, H42>=$C$21,$E$21,H42>=$C$20,$E$20,H42<=$D$19,$E$19) -> 0.04 | J42: 23 | K42: 23372.24003 | L42: 1804.667625 | M42: 77.90746678 | N42: 1726.760158 | O42: 0 | Q42: niet 0 | R42: 2025-11-30
H43: 2025-12-31 | I43: =_xlfn.IFS(H43>=$C$23,$E$23, H43>=$C$22,$E$22, H43>=$C$21,$E$21,H43>=$C$20,$E$20,H43<=$D$19,$E$19) -> 0.04 | J43: 22 | K43: 21645.47988 | L43: 1804.667625 | M43: 72.15159959 | N43: 1732.516025 | O43: 0 | Q43: niet 0 | R43: 2025-12-31
H44: 2026-01-31 | I44: =_xlfn.IFS(H44>=$C$23,$E$23, H44>=$C$22,$E$22, H44>=$C$21,$E$21,H44>=$C$20,$E$20,H44<=$D$19,$E$19) -> 0.04 | J44: 21 | K44: 19912.96385 | L44: 1804.667625 | M44: 66.37654617 | N44: 1738.291079 | O44: 0 | Q44: niet 0 | R44: 2026-01-31
H45: 2026-02-28 | I45: =_xlfn.IFS(H45>=$C$23,$E$23, H45>=$C$22,$E$22, H45>=$C$21,$E$21,H45>=$C$20,$E$20,H45<=$D$19,$E$19) -> 0.04 | J45: 20 | K45: 18174.67277 | L45: 1804.667625 | M45: 60.58224257 | N45: 1744.085382 | O45: 0 | Q45: niet 0 | R45: 2026-02-28
H46: 2026-03-31 | I46: =_xlfn.IFS(H46>=$C$23,$E$23, H46>=$C$22,$E$22, H46>=$C$21,$E$21,H46>=$C$20,$E$20,H46<=$D$19,$E$19) -> 0.04 | J46: 19 | K46: 16430.58739 | L46: 1804.667625 | M46: 54.76862463 | N46: 1749.899 | O46: 0 | Q46: niet 0 | R46: 2026-03-31
H47: 2026-04-30 | I47: =_xlfn.IFS(H47>=$C$23,$E$23, H47>=$C$22,$E$22, H47>=$C$21,$E$21,H47>=$C$20,$E$20,H47<=$D$19,$E$19) -> 0.04 | J47: 18 | K47: 14680.68839 | L47: 1804.667625 | M47: 48.93562797 | N47: 1755.731997 | O47: 0 | Q47: niet 0 | R47: 2026-04-30
H48: 2026-05-31 | I48: =_xlfn.IFS(H48>=$C$23,$E$23, H48>=$C$22,$E$22, H48>=$C$21,$E$21,H48>=$C$20,$E$20,H48<=$D$19,$E$19) -> 0.04 | J48: 17 | K48: 12924.95639 | L48: 1804.667625 | M48: 43.08318798 | N48: 1761.584437 | O48: 0 | Q48: niet 0 | R48: 2026-05-31
H49: 2026-06-30 | I49: =_xlfn.IFS(H49>=$C$23,$E$23, H49>=$C$22,$E$22, H49>=$C$21,$E$21,H49>=$C$20,$E$20,H49<=$D$19,$E$19) -> 0.04 | J49: 16 | K49: 11163.37196 | L49: 1804.667625 | M49: 37.21123985 | N49: 1767.456385 | O49: 0 | Q49: niet 0 | R49: 2026-06-30
H50: 2026-07-31 | I50: =_xlfn.IFS(H50>=$C$23,$E$23, H50>=$C$22,$E$22, H50>=$C$21,$E$21,H50>=$C$20,$E$20,H50<=$D$19,$E$19) -> 0.04 | J50: 15 | K50: 9395.915572 | L50: 1804.667625 | M50: 31.31971857 | N50: 1773.347906 | O50: 0 | Q50: niet 0 | R50: 2026-07-31
H51: 2026-08-31 | I51: =_xlfn.IFS(H51>=$C$23,$E$23, H51>=$C$22,$E$22, H51>=$C$21,$E$21,H51>=$C$20,$E$20,H51<=$D$19,$E$19) -> 0.04 | J51: 14 | K51: 7622.567666 | L51: 1804.667625 | M51: 25.40855889 | N51: 1779.259066 | O51: 0 | Q51: niet 0 | R51: 2026-08-31
H52: 2026-09-30 | I52: =_xlfn.IFS(H52>=$C$23,$E$23, H52>=$C$22,$E$22, H52>=$C$21,$E$21,H52>=$C$20,$E$20,H52<=$D$19,$E$19) -> 0.04 | J52: 13 | K52: 5843.3086 | L52: 1804.667625 | M52: 19.47769533 | N52: 1785.189929 | O52: 0 | Q52: niet 0 | R52: 2026-09-30
H53: 2026-10-31 | I53: =_xlfn.IFS(H53>=$C$23,$E$23, H53>=$C$22,$E$22, H53>=$C$21,$E$21,H53>=$C$20,$E$20,H53<=$D$19,$E$19) -> 0.04 | J53: 12 | K53: 4058.11867 | L53: 1804.667625 | M53: 13.52706223 | N53: 1791.140562 | O53: 0 | Q53: niet 0 | R53: 2026-10-31
H54: 2026-11-30 | I54: =_xlfn.IFS(H54>=$C$23,$E$23, H54>=$C$22,$E$22, H54>=$C$21,$E$21,H54>=$C$20,$E$20,H54<=$D$19,$E$19) -> 0.04 | J54: 11 | K54: 2266.978108 | L54: 1804.667625 | M54: 7.556593693 | N54: 1797.111031 | O54: 0 | Q54: niet 0 | R54: 2026-11-30
H55: 2026-12-31 | I55: =_xlfn.IFS(H55>=$C$23,$E$23, H55>=$C$22,$E$22, H55>=$C$21,$E$21,H55>=$C$20,$E$20,H55<=$D$19,$E$19) -> 0.04 | J55: 10 | K55: 469.8670768 | L55: 471.4333004 | M55: 1.566223589 | N55: 469.8670768 | O55: 0 | Q55: niet 0 | R55: 2026-12-31
H56: 2027-01-31 | I56: =_xlfn.IFS(H56>=$C$23,$E$23, H56>=$C$22,$E$22, H56>=$C$21,$E$21,H56>=$C$20,$E$20,H56<=$D$19,$E$19) -> 0.04 | J56: 9 | K56: 0 | L56: 0 | M56: 0 | N56: 0 | O56: 0 | Q56: 0 | R56: 2027-01-31
H57: 2027-02-28 | I57: =_xlfn.IFS(H57>=$C$23,$E$23, H57>=$C$22,$E$22, H57>=$C$21,$E$21,H57>=$C$20,$E$20,H57<=$D$19,$E$19) -> 0.04 | J57: 8 | K57: 0 | L57: 0 | M57: 0 | N57: 0 | O57: 0 | Q57: 0 | R57: 2027-02-28
H58: 2027-03-31 | I58: =_xlfn.IFS(H58>=$C$23,$E$23, H58>=$C$22,$E$22, H58>=$C$21,$E$21,H58>=$C$20,$E$20,H58<=$D$19,$E$19) -> 0.04 | J58: 7 | K58: 0 | L58: 0 | M58: 0 | N58: 0 | O58: 0 | Q58: 0 | R58: 2027-03-31
H59: 2027-04-30 | I59: =_xlfn.IFS(H59>=$C$23,$E$23, H59>=$C$22,$E$22, H59>=$C$21,$E$21,H59>=$C$20,$E$20,H59<=$D$19,$E$19) -> 0.04 | J59: 6 | K59: 0 | L59: 0 | M59: 0 | N59: 0 | O59: 0 | Q59: 0 | R59: 2027-04-30
H60: 2027-05-31 | I60: =_xlfn.IFS(H60>=$C$23,$E$23, H60>=$C$22,$E$22, H60>=$C$21,$E$21,H60>=$C$20,$E$20,H60<=$D$19,$E$19) -> 0.04 | J60: 5 | K60: 0 | L60: 0 | M60: 0 | N60: 0 | O60: 0 | Q60: 0 | R60: 2027-05-31
H61: 2027-06-30 | I61: =_xlfn.IFS(H61>=$C$23,$E$23, H61>=$C$22,$E$22, H61>=$C$21,$E$21,H61>=$C$20,$E$20,H61<=$D$19,$E$19) -> 0.04 | J61: 4 | K61: 0 | L61: 0 | M61: 0 | N61: 0 | O61: 0 | Q61: 0 | R61: 2027-06-30
H62: 2027-07-31 | I62: =_xlfn.IFS(H62>=$C$23,$E$23, H62>=$C$22,$E$22, H62>=$C$21,$E$21,H62>=$C$20,$E$20,H62<=$D$19,$E$19) -> 0.04 | J62: 3 | K62: 0 | L62: 0 | M62: 0 | N62: 0 | O62: 0 | Q62: 0 | R62: 2027-07-31
H63: 2027-08-31 | I63: =_xlfn.IFS(H63>=$C$23,$E$23, H63>=$C$22,$E$22, H63>=$C$21,$E$21,H63>=$C$20,$E$20,H63<=$D$19,$E$19) -> 0.04 | J63: 2 | K63: 0 | L63: 0 | M63: 0 | N63: 0 | O63: 0 | Q63: 0 | R63: 2027-08-31
H64: 2027-09-30 | I64: =_xlfn.IFS(H64>=$C$23,$E$23, H64>=$C$22,$E$22, H64>=$C$21,$E$21,H64>=$C$20,$E$20,H64<=$D$19,$E$19) -> 0.04 | J64: 1 | K64: 0 | L64: 0 | M64: 0 | N64: =L64-M64 -> 0 | O64: 0 | Q64: 0 | R64: 2027-09-30
K65: 0

Sheet hulptab (hidden)
A1: Ja
A2: Nee
